Cogmind - Beta 9.4 @@@ ROGUE MODE // 2020.03.19 @ 20:01:20 Player: Joshua Result: Destroyed by S-10 Pest with Light Assault Rifle Performance ------------- Evolutions (1) 500 Regions Visited (6) 1200 Robots Destroyed (45) 225 Value Destroyed (858) 858 Prototype IDs (23) 460 Alien Tech Used (0) 0 Bonus (247) 247 TOTAL SCORE: 3490 Bonus ------- Follower Combat Kills 7 Aligned with FarCom 300 Friendly Fire -60 Cogmind --------- Core Integrity 0/400 Matter 245/300 Energy 98/100 System Corruption 2% Temperature Cool (0) Movement Core (50) Location -8/Mines Parts ------- > --- POWER (1) -------- (None) > --- PROPULSION (2) --- (None) > --- UTILITY (2) ------ Experimental Heat Sink Visual Processing Unit > --- WEAPON (4) ------- (None) > --- INVENTORY (4) ---- Large Storage Unit Light EM Pulse Cannon Light Cannon Light Cannon Peak State ------------ > --- POWER ------------ (None) > --- PROPULSION ------- Light Treads Compact Wheel > --- UTILITY ---------- Experimental Heat Sink Large Storage Unit > --- WEAPON ----------- Longsword +1 > --- INVENTORY -------- Improved Ion Engine Large Storage Unit Light EM Pulse Cannon Light Cannon Light Cannon Light Cannon [Rating: 18] Favorites ----------- Power Ion Engine Engine Ion Engine Propulsion Light Treads Treads Light Treads Wheel Compact Wheel Utility Large Storage Unit Device Cooling System Storage Large Storage Unit Processor Visual Processing Unit Protection Hardened Light Armor Plating Weapon Light Cannon Energy Gun Medium Laser Ballistic Gun Heavy Assault Rifle Ballistic Cannon Light Cannon Launcher Grenade Launcher Special Weapon Mining Laser Slashing Weapon Longsword +1 Build | -11 -10 -10 -9 -9 -9 -8 ------- Run | Scr Mat Min Mat Min Exi Min Slots Evolved 2 | . . . 2 . . . Power . | . . . . . . . Propulsion . | . . . . . . . Utility . | . . . . . . . Weapon 2 | . . . 2 . . . Parts Attached 51 | 6 12 . 16 8 8 1 Power 3 | 1 1 . 1 . . . Engine 3 | 1 1 . 1 . . . Core . | . . . . . . . Reactor . | . . . . . . . Propulsion 10 | 2 1 . 1 1 5 . Treads 4 | . 1 . 1 . 2 . Leg . | . . . . . . . Wheel 6 | 2 . . . 1 3 . Hover . | . . . . . . . Flight . | . . . . . . . Utility 11 | 1 3 . 4 1 1 1 Device 5 | . 2 . 2 . 1 . Storage 3 | 1 1 . 1 . . . Processor 1 | . . . . . . 1 Hackware . | . . . . . . . Protection 2 | . . . 1 1 . . Artifact . | . . . . . . . Weapon 27 | 2 7 . 10 6 2 . Energy Gun 2 | 2 . . . . . . Energy Cannon . | . . . . . . . Ballistic Gun 6 | . 3 . 3 . . . Ballistic Cannon 11 | . 3 . 5 3 . . Launcher 5 | . 1 . 2 1 1 . Special Weapon 2 | . . . . 2 . . Impact Weapon . | . . . . . . . Slashing Weapon 1 | . . . . . 1 . Piercing Weapon . | . . . . . . . Special Melee Weapon . | . . . . . . . Unidentified Prototypes 1 | . . . . . 1 . Parts Lost 15 | . . . 2 1 12 . Power 2 | . . . 1 . 1 . Propulsion 5 | . . . . . 5 . Utility 3 | . . . 1 1 1 . Weapon 5 | . . . . . 5 . Highest Loss Streak 9 | . . . 1 1 9 . Average Slot Usage (%) 92 | . 94 100 99 99 78 20 Engine 10 | . 13 14 11 11 7 . Treads 10 | . 6 14 15 11 8 . Wheel 11 | . 21 14 6 11 9 . Device 7 | . 9 14 6 8 2 11 Storage 11 | . 14 14 11 11 11 . Protection 3 | . . . 4 2 7 . Energy Gun 2 | . 9 . . . . . Ballistic Gun 4 | . 7 14 10 . . . Ballistic Cannon 27 | . 10 14 33 41 30 . Naked Turns . | . . . . . . . Heaviest Build 40 | 12 19 19 40 38 38 . Greatest Support 40 | 26 26 20 40 16 26 3 Greatest Overweight (x) 6 | . . . 2 2 6 . Average Overweight (x) 1 | . . . . 1 2 . Largest Inventory Capacity 10 | 6 8 8 10 10 10 4 Average Capacity 8 | 5 6 8 9 10 10 4 Most Carried 10 | 6 8 8 10 10 10 4 Average Carried 8 | 3 6 8 9 9 8 4 Final Capacity 10 | 6 8 8 10 10 10 4 Final Carried 10 | 6 8 8 10 10 6 4 Class Distribution -------------------- 46% | Mutant 31% | Gunner 21% | Tank Dominant Class ---------------- Mutant | -10/Materials Mutant | -10/Mines Gunner | -9/Materials Gunner | -9/Mines Tank | -9/Exiles Mutant | -8/Mines Resources | -11 -10 -10 -9 -9 -9 -8 ----------- Run | Scr Mat Min Mat Min Exi Min Matter Collected 1534 | 260 165 . 672 363 74 . Remotely . | . . . . . . . Salvage Created 1063 | 55 258 . 575 100 75 . Parts 66 | 1 19 . 40 5 1 . Haulers Intercepted 3 | . 1 . 2 . . . Recyclers Shooed 3 | . 1 . 2 . . . Parts Field Recycled . | . . . . . . . Retrieved Matter . | . . . . . . . Parts Self-Destructed . | . . . . . . . Prevented . | . . . . . . . Kills | -11 -10 -10 -9 -9 -9 -8 ------- Run | Scr Mat Min Mat Min Exi Min Combat Hostiles Destroyed 33 | . 5 . 16 4 8 . Melee 3 | . . . . . 3 . Guns 7 | . 4 . 3 . . . Cannons 12 | . 1 . 8 2 1 . AOE 11 | . . . 5 2 4 . Classes Destroyed 9 | 1 5 . 2 . 1 . Worker 2 | . . . 2 . . . Builder 2 | . 2 . . . . . Hauler 3 | . 1 . 2 . . . Recycler 3 | 1 1 . 1 . . . Watcher 2 | . 2 . . . . . Swarmer 9 | . 3 . 4 2 . . Grunt 13 | . 2 . 9 2 . . Sentry 3 | . . . 3 . . . Assembled 7 | . . . . . 7 . Best Kill Streak 7 | 1 3 . 5 2 7 . Combat Bots Only 7 | . 2 . 5 2 7 . Max Kills in Single Turn 3 | 1 1 . 2 1 3 . Gunslinging . | . . . . . . . Exploded 3 | . . . 2 1 3 . Melee 1 | . . . . . 1 . Uniques/NPCs Destroyed 1 | . . . . . 1 . 8R-AWN (-9/Exiles) Combat | -11 -10 -10 -9 -9 -9 -8 -------- Run | Scr Mat Min Mat Min Exi Min Damage Taken 2254 | . 102 . 458 351 1287 56 Core 435 | . 30 . 56 15 291 43 Absorbed by Shields . | . . . . . . . Core Remaining (%) 94 | 100 . 88 . . . . Volleys Fired 114 | 2 50 . 35 19 8 . Largest 4 | 2 2 . 4 4 4 . Hottest 140 | 90 90 . 128 140 140 . Shots Fired 289 | 4 97 . 124 43 21 . Gun 91 | 4 56 . 31 . . . Cannon 179 | . 40 . 89 32 18 . Launcher 10 | . 1 . 4 2 3 . Special 9 | . . . . 9 . . Kinetic 240 | . 70 . 120 32 18 . Thermal 39 | 4 26 . . 9 . . Explosive 10 | . 1 . 4 2 3 . Electromagnetic . | . . . . . . . Robot Hit Streak 11 | 3 11 . 7 7 5 . Robot Miss Streak 7 | 1 7 . 4 3 3 . Penetration Max . | . . . . . . . Secondary Targets . | . . . . . . . Shots Hit Robots 170 | 3 50 . 63 16 38 . Core Hits 85 | 2 17 . 34 11 20 1 Critical Hits 4 | . . . 3 . 1 . Critical Kills 1 | . . . 1 . . . Critical Parts Destroyed 2 | . . . 2 . . . Melee Attacks 25 | . . . . . 25 . Impact . | . . . . . . . Slashing 25 | . . . . . 25 . Piercing . | . . . . . . . Sneak Attacks . | . . . . . . . Combat Hostiles . | . . . . . . . Follow-up Attacks . | . . . . . . . Damage Inflicted 4179 | 24 754 . 1155 438 1807 1 Guns 551 | 24 317 . 210 . . . Cannons 1509 | . 437 . 632 301 139 . Explosions 999 | . . . 313 137 549 . Melee 1119 | . . . . . 1119 . Ramming 1 | . . . . . . 1 Kinetic 1868 | . 586 . 842 301 139 . Thermal 192 | 24 168 . . . . . Explosive 999 | . . . 313 137 549 . Electromagnetic . | . . . . . . . Impact . | . . . . . . . Slashing 1119 | . . . . . 1119 . Piercing . | . . . . . . . Highest Corruption 2 | . . . . 2 2 2 Average Corruption 2 | . . . . 2 2 2 Corruption Purged . | . . . . . . . Effects 8 | . . . . 3 5 . Message Errors 3 | . . . . 1 2 . Heat Flow Errors 2 | . . . . 1 1 . Energy Discharges 1 | . . . . . 1 . Targeting Errors 2 | . . . . 1 1 . Overload Shots . | . . . . . . . Overflow Damage 90 | . 25 . . 20 45 . Projectiles 38 | . 25 . . 13 . . Explosions 36 | . . . . 7 29 . Melee 16 | . . . . . 16 . Knockbacks 12 | . 5 . 2 4 1 . Impact . | . . . . . . . Kinetic 11 | . 5 . 2 3 1 . Secondary 1 | . . . . 1 . . Self-Inflicted Damage 103 | . . . . 31 72 . Shots 4 | . . . . 1 3 . Rammed 1 | . . . . . . 1 Targets Rammed 1 | . . . . . . 1 Kicked . | . . . . . . . Crushed . | . . . . . . . Highest Temperature 380 | 60 100 . 380 343 234 . Average Temperature 107 | 33 42 . 124 125 127 . Received Heat Transfer 180 | . 30 . 132 18 . . Effects 4 | . . . 3 1 . . Shutdowns 1 | . . . . 1 . . Interference 3 | . . . 3 . . . Siege Activations . | . . . . . . . Robots Corrupted . | . . . . . . . Combat Hostiles . | . . . . . . . Parts Fried . | . . . . . . . Impact Corruptions . | . . . . . . . Robots Melted . | . . . . . . . Combat Hostiles . | . . . . . . . Parts Melted 1 | 1 . . . . . . Heat Transferred 520 | 62 458 . . . . . Parts Sabotaged . | . . . . . . . Parts Stolen . | . . . . . . . Parts Stripped . | . . . . . . . Power Chain Reactions . | . . . . . . . Missiles Intercepted . | . . . . . . . Alert | -11 -10 -10 -9 -9 -9 -8 ------- Run | Scr Mat Min Mat Min Exi Min Peak Influence 332 | 5 201 30 297 332 . . Average Influence 137 | 1 87 30 162 198 . . Maximum Alert Level 1 | . 1 . 1 1 . . Low Security (%) 69 | 100 87 100 53 59 . 100 Level 1 30 | . 12 . 46 40 . . Level 2 . | . . . . . . . Level 3 . | . . . . . . . Level 4 . | . . . . . . . Level 5 . | . . . . . . . High Security . | . . . . . . . Max Security . | . . . . . . . Squads Dispatched 4 | . 2 . 2 . . . Investigation 2 | . 1 . 1 . . . Extermination . | . . . . . . . Reinforcement 2 | . 1 . 1 . . . Assault . | . . . . . . . Garrison . | . . . . . . . Intercept . | . . . . . . . Construction Impeded . | . . . . . . . Haulers Reinforced . | . . . . . . . Stealth | -11 -10 -10 -9 -9 -9 -8 --------- Run | Scr Mat Min Mat Min Exi Min Distress Signals 1 | . . . 1 . . . Communications Jammed . | . . . . . . . Distress Signals . | . . . . . . . Times Spotted 56 | . 17 . 20 6 8 5 Peak Tracking Total 9 | . 3 . 6 4 9 1 Tactical Retreats 2 | . 1 . 1 . . . Traps | -11 -10 -10 -9 -9 -9 -8 ------- Run | Scr Mat Min Mat Min Exi Min Traps Triggered 3 | . 1 . 2 . . . Indirectly . | . . . . . . . Trap Hack Attempts . | . . . . . . . Triggered . | . . . . . . . Disarmed . | . . . . . . . Reprogrammed . | . . . . . . . Reused . | . . . . . . . Traps Extracted . | . . . . . . . Installed . | . . . . . . . Triggered . | . . . . . . . Machines | -11 -10 -10 -9 -9 -9 -8 ---------- Run | Scr Mat Min Mat Min Exi Min Machines Disabled 10 | . 1 . . 6 3 . Max in Single Turn 6 | . 1 . . 6 1 . Machines Sabotaged . | . . . . . . . Garrisons Compromised . | . . . . . . . Overloaded Fab Kills . | . . . . . . . Fab Network Shutdowns . | . . . . . . . Hacking | -11 -10 -10 -9 -9 -9 -8 --------- Run | Scr Mat Min Mat Min Exi Min Machines Accessed 9 | . 4 . 3 . 2 . Terminals 6 | . 3 . 3 . . . Fabricators . | . . . . . . . Repair Stations . | . . . . . . . Recycling Units 1 | . 1 . . . . . Scanalyzers . | . . . . . . . Garrison Access . | . . . . . . . Total Hacks 20 | . 11 . 7 . 2 . Successful 12 | . 5 . 5 . 2 . Failed 8 | . 6 . 2 . . . Catastrophic . | . . . . . . . Database Lockouts . | . . . . . . . Manual 17 | . 11 . 5 . 1 . Terminals 17 | . 10 . 7 . . . Fabricators . | . . . . . . . Repair Stations . | . . . . . . . Recycling Units 1 | . 1 . . . . . Scanalyzers . | . . . . . . . Garrison Access . | . . . . . . . Terminal Hacks 4 | . 1 . 1 . 2 . Record 1 | . . . . . 1 . Robot Analysis 1 | . . . 1 . . . Recall Reinforcements 1 | . 1 . . . . . EX-Prototype ID Bank 1 | . . . . . 1 . Fabricator Hacks . | . . . . . . . Repair Station Hacks . | . . . . . . . Recycling Unit Hacks . | . . . . . . . Scanalyzer . | . . . . . . . Garrison Access Hacks . | . . . . . . . Unauthorized Hacks 19 | . 11 . 8 . . . Terminals 7 | . 3 . 4 . . . Track 1 | . . . 1 . . . Botnet 4 | . 2 . 2 . . . Operators 2 | . 1 . 1 . . . Fabricators . | . . . . . . . Repair Stations . | . . . . . . . Recycling Units 1 | . 1 . . . . . Tunnel 1 | . 1 . . . . . Scanalyzers . | . . . . . . . Garrison Access . | . . . . . . . Data Cores Recovered . | . . . . . . . Used . | . . . . . . . Hacking Detections 6 | . 3 . 3 . . . Full Trace Events . | . . . . . . . Feedback Events . | . . . . . . . Feedback Blocked . | . . . . . . . Robot Schematics Acquired . | . . . . . . . Robots Built . | . . . . . . . Matter . | . . . . . . . Time . | . . . . . . . Total Robot Build Rating . | . . . . . . . Part Schematics Acquired . | . . . . . . . Parts Built . | . . . . . . . Matter . | . . . . . . . Time . | . . . . . . . Total Part Build Rating . | . . . . . . . Parts Repaired . | . . . . . . . Time . | . . . . . . . Parts Recycled . | . . . . . . . Recycled Matter . | . . . . . . . Retrieved Matter . | . . . . . . . Retrieved Components . | . . . . . . . Parts Scanalyzed . | . . . . . . . Part Schematics Acquired . | . . . . . . . Parts Damaged . | . . . . . . . Bothacking | -11 -10 -10 -9 -9 -9 -8 ------------ Run | Scr Mat Min Mat Min Exi Min Used RIF Installer . | . . . . . . . Robots Hacked . | . . . . . . . Non-combat . | . . . . . . . Combat . | . . . . . . . Robot Hacks Applied . | . . . . . . . Relay Couplers Released . | . . . . . . . Robots Rewired . | . . . . . . . Allies Hacked . | . . . . . . . Hacks Repelled . | . . . . . . . Allies | -11 -10 -10 -9 -9 -9 -8 -------- Run | Scr Mat Min Mat Min Exi Min Total Allies 1 | . . . . 1 . . Largest Group 1 | . . . . 1 . . Highest-Rated Group 31 | . . . . 31 . . Highest-Rated Ally 31 | . . . . 31 . . Total Orders . | . . . . . . . Ally Attacks 2 | . . . . 2 . . Total Damage 21 | . . . . 21 . . Kills 1 | . . . . 1 . . Allies Corrupted . | . . . . . . . Allies Melted . | . . . . . . . Intel | -11 -10 -10 -9 -9 -9 -8 ------- Run | Scr Mat Min Mat Min Exi Min Robot Analysis Total 1 | . . . 1 . . . Derelict Logs Recovered 3 | . . 1 . 2 . . Drone Launches . | . . . . . . . Drone Recoveries . | . . . . . . . Exploration | -11 -10 -10 -9 -9 -9 -8 ------------- Run | Scr Mat Min Mat Min Exi Min Turns Passed 2471 | 61 558 87 642 619 440 64 Spaces Moved 1586 | 44 344 55 309 448 264 122 Core 145 | 3 . . . . 20 122 Treads 392 | . 102 55 228 . 7 . Legs . | . . . . . . . Wheels 1049 | 41 242 . 81 448 237 . Hover . | . . . . . . . Flight . | . . . . . . . Fastest Speed 50 | 50 90 160 110 110 90 50 Average Speed 122 | 87 110 160 155 119 134 50 Slowest Speed 350 | 100 160 160 180 120 350 50 Overloaded Moves . | . . . . . . . Propulsion Burnouts . | . . . . . . . Robots Hopped . | . . . . . . . Cave-ins Triggered 1 | . . . . 1 . . Exploration Rate (%) 41 | 3 52 20 35 93 52 32 Regions Visited 6 Branch Regions 4 Pre-discovered Areas 3 | . 1 . . 1 1 . Known Exits Taken 2 | . . 1 . 1 . . Unknown Exits Taken 4 | 1 1 . 1 . 1 . Scrap Searched 3 | . . . . 2 . 1 Spaces Dug 16 | . 7 . . 9 . . Terrain Destroyed 67 | . 7 . 25 24 11 . Melee . | . . . . . . . Projectile 9 | . . . . 9 . . AOE 58 | . 7 . 25 15 11 . Actions | -11 -10 -10 -9 -9 -9 -8 --------- Run | Scr Mat Min Mat Min Exi Min Total 1846 | 59 427 54 393 479 309 125 Wait 27 | . 11 . 13 . 3 . Move 1580 | 43 343 54 308 447 263 122 Hop . | . . . . . . . Pick Up 24 | 7 4 . 9 3 1 . Fast Attach 19 | 6 6 . 4 . 2 1 Attach 7 | . . . 2 1 4 . Detach . | . . . . . . . Swap 25 | . 6 . 10 7 2 . Drop 24 | 1 7 . 12 2 1 1 Fire 114 | 2 50 . 35 19 8 . Melee 25 | . . . . . 25 . Ram 1 | . . . . . . 1 Kick . | . . . . . . . Crush . | . . . . . . . Escape Stasis . | . . . . . . . Rewire . | . . . . . . . Trap . | . . . . . . . Miscellaneous . | . . . . . . . Route ------- -11/Scrapyard -10/Materials (discovered 3 exits: *Mat / [*Min x2]) -10/Mines (discovered 2 exits: *Mat x2) -9/Materials (discovered 2 exits: [*Mat] / [*Min]) -9/Mines (discovered 3 exits: [*Mat x2] / *Exi) -9/Exiles -8/Mines History --------- Turn | Location | Event 23 | -11/Scrapyard | Discovered new exit (range 15) 62 | -11/Scrapyard | Entered Materials 87 | -10/Materials | Discovered new exit (range 7) 235 | -10/Materials | Discovered new exit (range 16) 303 | -10/Materials | Build established: Mutant 557 | -10/Materials | Discovered new exit (range 14) 620 | -10/Materials | Entered Mines 659 | -10/Mines | Identified exit to Materials 692 | -10/Mines | Discovered exit to Materials (range 9) 707 | -10/Mines | Entered Materials 707 | -9/Materials | Evolved 2 slots: Weapon x2 1212 | -9/Materials | Discovered new exit (range 10) 1341 | -9/Materials | Discovered new exit (range 6) 1349 | -9/Materials | Entered Mines 1350 | -9/Mines | Assembled infested the area 1370 | -9/Mines | Build established: Gunner 1398 | -9/Mines | Received a Mining Laser from a helpful Derelict 1480 | -9/Mines | Discovered new exit (range 16) 1800 | -9/Mines | Crushed by falling debris 1903 | -9/Mines | Discovered new exit (range 9) 1913 | -9/Mines | Identified exit to Exiles 1968 | -9/Mines | Entered Exiles 1998 | -9/Exiles | Met 8R-AWN 2019 | -9/Exiles | Met EX-HEX 2064 | -9/Exiles | Met EX-DEC 2072 | -9/Exiles | Learned location of Zion (-6) 2093 | -9/Exiles | Met EX-BIN 2110 | -9/Exiles | Aligned with FarCom system 2111 | -9/Exiles | Given EX-Vault access code 2139 | -9/Exiles | Opened EX-Vault 2148 | -9/Exiles | Found Longsword +1 2176 | -9/Exiles | Warned to stay clear of 0b10 Research branches 2184 | -9/Exiles | Build established: Tank 2243 | -9/Exiles | Attacked by the Exiles 2290 | -9/Exiles | Destroyed 7 combat bots 2291 | -9/Exiles | Core integrity fell below 50% 2317 | -9/Exiles | Core integrity fell below 20% 2323 | -9/Exiles | Destroyed 8R-AWN 2343 | -9/Exiles | Lost 9 parts (1p3n1u4w) 2369 | -9/Exiles | Discovered new exit (range 15) 2391 | -9/Exiles | Lost 3 parts (2n1w) 2408 | -9/Exiles | Entered Mines 2472 | -8/Mines | Destroyed by S-10 Pest with Light Assault Rifle Last Messages --------------- 02336_ Acquired Lgt. Treads. 02348_ Rigged Fission Core explodes. 02348_ Lgt. Treads destroyed. 02348_ Com. Wheel destroyed. 02351_ #LNZS7HRWGR&Z9O>C79X 02360_ Rigged Lgt. Fission Core explodes. 02360_ Longsword +1 destroyed. 02369_ EXIT=FOUND 02373_ System corrupted: Heat flow error (+176). LOCATION=UNKNOWN GOAL=ESCAPE 02408_ Dropped Lrg. Storage Unit. 02413_ Searching scrap... 02413_ Found 33 Matter. 02413_ Found Hpw. Shotgun. 02413_ Found Visual Processing Unit. 02413_ Found Hvy. Mace. 02414_ Acquired Visual Processing Unit. 02463_ Slug penetrates Wall. 02470_ Slammed into T-07 Excavator. Map ----- +----------------------------------------------------+ | ?????????????????????????????????????????????????? | | ?????????????????????????????????????????????????? | | ?????????????????????????????????????????????????? | | ?????????????????????????????????????????????????? | | ????????####?????????????????????????????????????? | | ????##### ##????????????????????????????????????? | | ???## #????????????????????????????????????? | | ??## #????????????????????????????????????? | | ### ##????????????????????????????????????? | | #?????????????????????????????????????? | | #### ##?????????????????????????????????????? | | ###??## #??????????????????????????????????????? | | ??????## #??????????????????????????????????????? | | ???????## ##?????????????????????????????????????? | | ????????# #?????????????????????????????????????? | | ???????## #????????????????##???????????????????? | | ???????# ##?????????????? ##??????????????????? | | ???????# ##????????????? #??????????????????? | | ???????# ##???????????? ???????????????????? | | ??????## #???????????? #?????#?????????????? | | ?????## #??????????? ##### ##????????????? | | ?????# #??????????? ?????????????? | | ?????# #??????????? ssss ???????????????? | | ?????## ##???????### #?????????????????? | | ??????##### ##??????# #??????????????????? | | ???#####??## ####???# @tt#????????????????????? | | ??? ???## ##??# ####????????????????????? | | ???" ????# #??# #???????????????????????? | | ???" ????## #??# #???????????????????????? | | ???" ?????## ##??# #???????????????????????? | | ???? ???????## ##### #???????????????????????? | | ???? ????????## #???????????????????????? | | ???? ?????????## #### #???????????????????????? | | ???? ?????????## #??# #???????????????????????? | | ???? ??######## #??# #???????????????????????? | | ???? ??# ##?# #???????????????????????? | | ????# #??# #?# ???????????????????????? | | ????# #??# #### #?????????????????????? | | ????# #??# #??## #?????????????????????? | | ????# #### #???## ##?????????????????????? | | ????# #????## ##??????????????????????? | | ????###### #?????# ## ##???????????????????????? | | ?????????# #?????# #?# #????????????????????????? | | ?????????# #?????# #?? #????????????????????????? | | ?????????# #????? ?? #????????????????????????? | | ?????????# #?????"" ? ?????????????????????????? | | ???????### #?????"" ? ?????????????????????????? | | ???????# #??????" ##?????????????????????????? | | ???????# ###??????? #??????????????????????????? | | ???????# #?????????####??????????????????????????? | +----------------------------------------------------+ Best States ------------- Heat Dissipation 54 Energy Generation 10 Energy Capacity 250 Matter Stores 300 Matter Capacity 300 Sight Range 18 Terrain Scan Density 10 Armor Coverage 225 Evasion (%) 50 Recoil Reduction 2 Item Schematics ----------------- None Robot Schematics ------------------ None Fabricated ------------ Nothing Alien Tech Used ----------------- None Achievements -------------- None Challenges ------------ None Game ------ Seed MasterThermalMicroactuators Manual? 0 Play Time 00:20:56 Cumulative 485.5 hours Start 2020.03.19 @ 19:41:04 End 2020.03.19 @ 20:01:20 Sessions 1 Manual Loads 0 Difficulty Rogue Special Mode None Game No. 133 Rogue 133 Adventurer 0 Explorer 0 Win Type - Total 39 Types 22/3/5/3/2/1/3 Lore% 95 Gallery% 99 Achievement% 90 Wizard Run 0 Options --------- ASCII 1 Keyboard 1 Movement Vi Keybinds 0 Fullscreen 1 Font 12/Smallcaps Map View 83x54 Tactical HUD 1 Map Filters NONE Filters NONE Steam 0 RUN: dca6c3b0-7539-4fc1-b2ce-f1454ac50b26